fUSD/lending_fUSD_20260202
["ID","MTS","AMOUNT","RATE_DAILY","PERIOD"]
[404287600,1770034241132,-151.0,0.00012694,2]
[404287601,1770034241141,-500.0,0.00012694,2]
[404287602,1770034241151,-151.0,0.00012694,2]
[404287603,1770034241160,-500.0,0.00012694,2]
[404287604,1770034241170,-151.0,0.00012694,2]
[404287605,1770034241179,-151.0,0.00012694,2]
[404287606,1770034241189,-500.0,0.00012694,2]
[404287607,1770034241199,-151.0,0.00012694,2]
[404287608,1770034241209,-500.0,0.00012694,2]
[404287609,1770034241219,-151.0,0.00012694,2]
[404287610,1770034241229,-151.0,0.00012694,2]
[404287611,1770034241238,-500.0,0.00012694,2]
[404287612,1770034241248,-151.0,0.00012694,2]
[404287613,1770034241259,-500.0,0.00012694,2]
[404287614,1770034241273,-151.0,0.00012694,2]
[404287615,1770034241284,-211.73556923,0.00012694,2]
[404287616,1770034241294,-151.0,0.00012694,2]
[404287617,1770034241303,-500.0,0.00012694,2]
[404287618,1770034241313,-500.0,0.00012694,2]
[404287619,1770034241322,-500.0,0.00012694,2]
[404287620,1770034241332,-500.0,0.00012694,2]
[404287621,1770034241342,-500.0,0.00012694,2]
[404287622,1770034241351,-500.0,0.00012694,2]
[404287623,1770034241361,-500.0,0.00012694,2]
[404287624,1770034241371,-500.0,0.00012694,2]
[404287625,1770034241381,-500.0,0.00012694,2]
[404287626,1770034241391,-500.0,0.00012694,2]
[404287627,1770034241401,-500.0,0.00012694,2]
[404287628,1770034241410,-500.0,0.00012694,2]
[404287629,1770034241420,-500.0,0.000127,2]
[404287630,1770034241429,-310.36200231,0.000127,2]
[404287631,1770034241439,-189.63799769,0.000127,2]
[404287632,1770034241448,-500.0,0.000127,2]
[404287633,1770034241458,-371.20138863,0.000127,2]
[404287634,1770034241469,-1183.71644684,0.00012701,2]
[404287635,1770034241479,-500.0,0.00012701,2]
[404287636,1770034241488,-159.765,0.00012701,2]
[404287637,1770034241498,-2110.224,0.00012701,2]
[404287638,1770034241507,-482.11210267,0.00012701,2]
[404287639,1770034241517,-151.0,0.00012701,2]
[404287640,1770034241528,-1000.0,0.00012702,2]
[404287641,1770034241538,-32437.2215,0.00012702,2]
[404287642,1770034241550,-5912.0,0.00012746,2]
[404287643,1770034241561,-500.0,0.00012746,2]
[404287644,1770034241573,-5146.17023236,0.00012756,2]
[404287645,1770034241583,-200.0,0.00012795,2]
[404287646,1770034241594,-200.0,0.00012795,2]
[404287647,1770034241604,-500.0,0.00012801,2]
[404287648,1770034241615,-500.0,0.00012801,2]
[404287649,1770034241624,-207.33206215,0.00012801,2]
[404287650,1770034241634,-5912.0,0.00012801,2]
[404287651,1770034241643,-500.0,0.00012801,2]
[404287652,1770034241652,-500.0,0.00012801,2]
[404287653,1770034241661,-500.0,0.00012801,2]
[404287654,1770034241670,-500.0,0.00012801,2]
[404287655,1770034241680,-500.0,0.00012801,2]
[404287656,1770034241689,-500.0,0.00012801,2]
[404287657,1770034241699,-500.0,0.00012801,2]
[404287658,1770034241708,-500.0,0.00012801,2]
[404287659,1770034241717,-500.0,0.00012801,2]
[404287660,1770034241727,-500.0,0.00012801,2]
[404287661,1770034241737,-500.0,0.00012801,2]
[404287662,1770034241746,-500.0,0.00012801,2]
[404287663,1770034241755,-500.0,0.00012801,2]
[404287664,1770034241764,-500.0,0.00012801,2]
[404287665,1770034241773,-500.0,0.00012801,2]
[404287666,1770034241782,-500.0,0.00012801,2]
[404287667,1770034241792,-500.0,0.00012801,2]
[404287668,1770034241801,-500.0,0.00012801,2]
[404287669,1770034241810,-500.0,0.00012801,2]
[404287670,1770034241819,-500.0,0.00012801,2]
[404287671,1770034241828,-500.0,0.00012801,2]
[404287672,1770034241837,-500.0,0.00012801,2]
[404287673,1770034241846,-366.71047513,0.00012801,2]
[404287674,1770034241855,-500.0,0.00012801,2]
[404287675,1770034241864,-304.75672637,0.00012801,2]
[404287676,1770034241874,-500.0,0.00012801,2]
[404287677,1770034241884,-500.0,0.00012801,2]
[404287678,1770034241893,-500.0,0.00012801,2]
[404287679,1770034241903,-500.0,0.00012801,2]
[404287680,1770034241912,-500.0,0.00012801,2]
[404287681,1770034241921,-500.0,0.00012801,2]
[404287682,1770034241930,-500.0,0.00012801,2]
[404287683,1770034241942,-500.0,0.00012801,2]
[404287684,1770034241953,-500.0,0.00012801,2]
[404287685,1770034241963,-500.0,0.00012801,2]
[404287686,1770034241972,-500.0,0.00012801,2]
[404287687,1770034241982,-500.0,0.00012801,2]
[404287688,1770034241991,-500.0,0.00012801,2]
[404287689,1770034242001,-500.0,0.00012801,2]
[404287690,1770034242012,-500.0,0.00012801,2]
[404287691,1770034242021,-500.0,0.00012801,2]
[404287692,1770034242031,-500.0,0.00012801,2]
[404287693,1770034242042,-500.0,0.00012801,2]
[404287694,1770034242056,-500.0,0.00012801,2]
[404287695,1770034242066,-500.0,0.00012801,2]
[404287696,1770034242077,-500.0,0.00012801,2]
[404287697,1770034242087,-500.0,0.00012801,2]
[404287698,1770034242099,-500.0,0.00012801,2]
[404287699,1770034242108,-500.0,0.00012801,2]
[404287700,1770034242118,-500.0,0.00012801,2]
[404287701,1770034242130,-500.0,0.00012801,2]
[404287702,1770034242140,-500.0,0.00012801,2]
[404287703,1770034242149,-500.0,0.00012801,2]
[404287704,1770034242159,-500.0,0.00012801,2]
[404287705,1770034242168,-500.0,0.00012801,2]
[404287706,1770034242177,-500.0,0.00012801,2]
[404287707,1770034242186,-500.0,0.00012801,2]
[404287708,1770034242196,-500.0,0.00012801,2]
[404287709,1770034242205,-500.0,0.00012801,2]
[404287710,1770034242214,-500.0,0.00012801,2]
[404287711,1770034242224,-500.0,0.00012801,2]
[404287712,1770034242242,-500.0,0.00012801,2]
[404287713,1770034242253,-500.0,0.00012801,2]
[404287714,1770034242262,-500.0,0.00012801,2]
[404287715,1770034242272,-500.0,0.00012801,2]
[404287716,1770034242283,-500.0,0.00012801,2]
[404287717,1770034242294,-500.0,0.00012801,2]
[404287718,1770034242304,-500.0,0.00012801,2]
[404287719,1770034242316,-500.0,0.00012801,2]
[404287720,1770034242326,-500.0,0.00012801,2]
[404287721,1770034242336,-500.0,0.00012801,2]
[404287722,1770034242346,-500.0,0.00012801,2]
[404287723,1770034242355,-500.0,0.00012801,2]
[404287724,1770034242364,-500.0,0.00012801,2]
[404287725,1770034242374,-645.691315,0.00012801,2]
[404287726,1770034242383,-500.0,0.00012801,2]
[404287727,1770034242394,-500.0,0.00012801,2]
[404287728,1770034242404,-500.0,0.00012801,2]
[404287729,1770034242416,-500.0,0.00012801,2]
[404287730,1770034242426,-500.0,0.00012801,2]
[404287731,1770034242435,-500.0,0.00012801,2]
[404287732,1770034242444,-500.0,0.00012801,2]
[404287733,1770034242453,-500.0,0.00012801,2]
[404287734,1770034242463,-500.0,0.00012801,2]
[404287735,1770034242474,-500.0,0.00012801,2]
[404287736,1770034242483,-500.0,0.00012801,2]
[404287737,1770034242493,-500.0,0.00012801,2]
[404287738,1770034242503,-500.0,0.00012801,2]
[404287739,1770034242512,-500.0,0.00012801,2]
[404287740,1770034242521,-500.0,0.00012801,2]
[404287741,1770034242530,-171.53227659,0.00012801,2]
[404287742,1770034242539,-310.36200231,0.00012801,2]
[404287743,1770034242549,-91439.4134,0.00012802,2]
[404287744,1770034242558,-250.0,0.00012846,2]
[404287745,1770034242568,-5912.0,0.00012856,2]
[404287746,1770034242577,-388.17458479,0.00012876,2]
[404287747,1770034242587,-260.54889749,0.00012888,2]
[404287748,1770034242598,-250.0,0.00012888,2]
[404287749,1770034242609,-500.0,0.00012888,2]
[404287750,1770034242619,-300.0,0.00012888,2]
[404287751,1770034242639,-5912.0,0.00012911,2]
[404287752,1770034242649,-200.0,0.00012923,2]
[404287753,1770034242660,-200.0,0.00012923,2]
[404287754,1770034242671,-5912.0,0.00012965,2]
[404287755,1770034242681,-5912.0,0.0001302,2]
[404287756,1770034242691,-13492.37001067,0.00013027,2]
[404287757,1770034242702,-200.0,0.00013052,2]
[404287758,1770034242712,-200.0,0.00013052,2]
[404287759,1770034242724,-223.2,0.00013057,2]
[404287760,1770034242735,-5912.0,0.00013075,2]
[404287761,1770034242743,-5912.0,0.0001313,2]
[404287762,1770034242753,-300.0,0.00013133,2]
[404287763,1770034242762,-250.0,0.00013133,2]
[404287764,1770034242771,-502.27711246,0.00013133,2]
[404287765,1770034242780,-200.0,0.00013183,2]
[404287766,1770034242795,-200.0,0.00013183,2]
[404287767,1770034242804,-5912.0,0.00013185,2]
[404287768,1770034242814,-12810.6979876,0.00013191,2]
[404287769,1770034242823,-152.49,0.00013197,2]
[404287770,1770034242833,-5912.0,0.00013239,2]
[404287771,1770034242843,-500.0,0.00013242,2]
[404287772,1770034242852,-5912.0,0.00013294,2]
[404287773,1770034242861,-200.0,0.00013315,2]
[404287774,1770034242871,-200.0,0.00013315,2]
[404287775,1770034242881,-5912.0,0.00013349,2]
[404287776,1770034242892,-5912.0,0.00013404,2]
[404287777,1770034242902,-5912.0,0.00013459,2]
[404287778,1770034242913,-420.0,0.0001349,2]
[404287779,1770034242924,-5912.0,0.00013513,2]
[404287780,1770034242933,-1680.0,0.00013521,2]
[404287781,1770034242943,-420.0,0.00013559,2]
[404287782,1770034242952,-5912.0,0.00013568,2]
[404287783,1770034242962,-255.0,0.00013616,2]
[404287784,1770034242971,-5912.0,0.00013623,2]
[404287785,1770034242981,-13492.37001067,0.00013636,2]
[404287786,1770034242990,-5912.0,0.00013678,2]
[404287787,1770034243000,-500.0,0.00013698,2]
[404287788,1770034243009,-500.0,0.00013698,2]
[404287789,1770034243019,-310.72048062,0.00013698,2]
[404287790,1770034243033,-500.0,0.00013698,2]
[404287791,1770034243053,-500.0,0.00013698,2]
[404287792,1770034243068,-277.632,0.00013698,2]
[404287793,1770034243078,-506.4463116,0.00013698,2]
[404287794,1770034243087,-500.0,0.00013698,2]
[404287795,1770034243099,-500.0,0.00013698,2]
[404287796,1770034243110,-500.0,0.00013698,2]
[404287797,1770034243120,-500.0,0.00013698,2]
[404287798,1770034243130,-500.0,0.00013698,2]
[404287799,1770034243141,-500.0,0.00013698,2]
[404287800,1770034243444,-519.14978785,0.00013698,2]
[404287801,1770034243453,-500.0,0.00013698,2]
[404287802,1770034243463,-500.0,0.00013698,2]
[404287803,1770034243475,-500.0,0.00013698,2]
[404287804,1770034243484,-500.0,0.00013698,2]
[404287805,1770034243493,-503.69401691,0.00013698,2]
[404287806,1770034243502,-500.0,0.00013698,2]
[404287807,1770034243511,-500.0,0.00013698,2]
[404287808,1770034243520,-500.0,0.00013698,2]
[404287809,1770034243529,-500.0,0.00013698,2]
[404287810,1770034243538,-500.0,0.00013698,2]
[404287811,1770034243547,-500.0,0.00013698,2]
[404287812,1770034243556,-500.0,0.00013698,2]
[404287813,1770034243565,-500.0,0.00013698,2]
[404287814,1770034243574,-587.5541255,0.00013698,2]
[404287815,1770034243583,-523.26417397,0.00013698,2]
[404287816,1770034243592,-500.0,0.00013698,2]
[404287817,1770034243602,-500.0,0.00013698,2]
[404287818,1770034243612,-500.0,0.00013698,2]
[404287819,1770034243622,-500.0,0.00013698,2]
[404287820,1770034243630,-500.0,0.00013698,2]
[404287821,1770034243640,-496.93460441,0.00013698,2]
[404287822,1770034243649,-500.0,0.00013698,2]
[404287823,1770034243658,-500.0,0.00013698,2]
[404287824,1770034243667,-500.0,0.00013698,2]
[404287825,1770034243679,-500.0,0.00013698,2]
[404287826,1770034243688,-500.0,0.00013698,2]
[404287827,1770034243697,-500.0,0.00013698,2]
[404287828,1770034243706,-500.0,0.00013698,2]
[404287829,1770034243715,-500.0,0.00013698,2]
[404287830,1770034243724,-500.0,0.00013698,2]
[404287831,1770034243733,-500.0,0.00013698,2]
[404287832,1770034243743,-500.0,0.00013698,2]
[404287833,1770034243752,-500.0,0.00013698,2]
[404287834,1770034243762,-500.0,0.00013698,2]
[404287835,1770034243770,-500.0,0.00013698,2]
[404287837,1770034243780,-159.30915247,0.00013698,2]
[404287839,1770034243789,-500.0,0.00013698,2]
[404287841,1770034243798,-500.0,0.00013698,2]
[404287843,1770034243807,-500.0,0.00013698,2]
[404287844,1770034243816,-500.0,0.00013698,2]
[404287846,1770034243825,-500.0,0.00013698,2]
[404287848,1770034243835,-500.0,0.00013698,2]
[404287850,1770034243844,-504.83472388,0.00013698,2]
[404287851,1770034243853,-500.0,0.00013698,2]
[404287852,1770034243862,-500.0,0.00013698,2]
[404287853,1770034243873,-500.0,0.00013698,2]
[404287854,1770034243883,-500.0,0.00013698,2]
[404287856,1770034243892,-500.0,0.00013698,2]
[404287858,1770034243901,-500.0,0.00013698,2]
[404287860,1770034243910,-500.0,0.00013698,2]
[404287862,1770034243919,-500.0,0.00013698,2]
[404287864,1770034243929,-500.0,0.00013698,2]
[404287866,1770034243938,-500.0,0.00013698,2]
[404287867,1770034243947,-352.84918147,0.00013698,2]
[404287868,1770034243956,-200.0,0.00013699,2]
[404287869,1770034243966,-3819.93,0.00013699,2]
[404287870,1770034243976,-5912.0,0.00013732,2]
[404287871,1770034243985,-12810.6979876,0.00013779,2]
[404287872,1770034243995,-5924.61609587,0.00013787,2]
[404287873,1770034244004,-500.0,0.0001379,2]
[404287874,1770034244014,-151.0,0.00013901,2]
[404287875,1770034244023,-153.79594173,0.00013901,2]
[404287876,1770034244032,-151.0,0.00013901,2]
[404287877,1770034244041,-151.0,0.00013901,2]
[404287878,1770034244051,-500.88887474,0.00013973,2]
[404287879,1770034244064,-500.125501,0.00013973,2]
[404287880,1770034244074,-501.73498825,0.00013973,2]
[404287881,1770034244084,-500.0,0.00013973,2]
[404287882,1770034244095,-500.0,0.00013973,2]
[404287883,1770034244104,-500.0,0.00013973,2]
[404287884,1770034244114,-501.3792678,0.00013973,2]
[404287885,1770034244123,-500.7756559,0.00013973,2]
[404287886,1770034244134,-177.72668829,0.00013973,2]
[404287887,1770034244143,-500.0,0.00013973,2]
[404287888,1770034244152,-500.0,0.00013973,2]
[404287889,1770034244161,-500.0,0.00013973,2]
[404287890,1770034244170,-500.0,0.00013973,2]
[404287891,1770034244180,-500.0,0.00013973,2]
[404287892,1770034244190,-500.0,0.00013973,2]
[404287893,1770034244199,-170.70108958,0.00013973,2]
[404287894,1770034244208,-169.68447442,0.00013973,2]
[404287895,1770034244218,-407.76648186,0.00013973,2]
[404287896,1770034244230,-217.67941742,0.00013973,2]
[404287897,1770034244240,-500.0,0.00013973,2]
[404287898,1770034244249,-500.0,0.00013973,2]
[404287899,1770034244259,-500.0,0.00013973,2]
[404287900,1770034244276,-500.0,0.00013973,2]
[404287901,1770034244287,-503.39541784,0.00013973,2]
[404287902,1770034244297,-500.0,0.00013973,2]
[404287903,1770034244307,-500.0,0.00013973,2]
[404287904,1770034244316,-500.0,0.00013973,2]
[404287905,1770034244326,-500.0,0.00013973,2]
[404287906,1770034244335,-319.40810166,0.00013973,2]
[404287907,1770034244345,-351.20237419,0.00013983,2]
[404287908,1770034244354,-76691.8629133,0.00013992,2]
[404287909,1770034244364,-393.99562504,0.00014002,2]
[404287910,1770034244373,-502.95071122,0.00014138,2]
[404287911,1770034244383,-1000.0,0.00014205,2]
[404287912,1770034244393,-13492.37001067,0.00014245,2]
[404287913,1770034244403,-910.54547353,0.00014255,2]
[404287914,1770034244412,-500.0,0.00014338,2]
[404287915,1770034244422,-12810.6979876,0.00014368,2]
[404287916,1770034244432,-3819.93,0.00014384,2]
[404287917,1770034244441,-151.0,0.00014413,2]
[404287918,1770034244450,-151.0,0.0001442,2]
[404287919,1770034244459,-10000.0,0.00014421,2]
[404287920,1770034244468,-151.0,0.00014445,2]
[404287921,1770034244478,-151.0,0.00014445,2]
[404287922,1770034244488,-151.0,0.00014466,2]
[404287923,1770034244498,-1000.0,0.00014521,2]
[404287924,1770034244507,-1000.0,0.00014521,2]
[404287925,1770034244516,-845.5316297,0.00014521,2]
[404287926,1770034244525,-463.7080185,0.00014521,2]
[404287927,1770034244535,-445.7560689,0.00014521,2]
[404287928,1770034244545,-1142.79089811,0.00014521,2]
[404287929,1770034244556,-514.08429044,0.00014521,2]
[404287930,1770034244566,-1000.0,0.00014521,2]
[404287931,1770034244576,-504.42982336,0.00014521,2]
[404287932,1770034244585,-500.0,0.00014521,2]
[404287933,1770034244595,-1002.39079139,0.00014521,2]
[404287934,1770034244606,-1061.85744553,0.00014521,2]
[404287935,1770034244617,-1163.5469181,0.0001459,2]
[404287936,1770034244628,-151.0,0.0001471,2]
[404287937,1770034244640,-151.0,0.0001471,2]
[404287938,1770034244651,-151.0,0.00014734,2]
[404287939,1770034244662,-151.0,0.00014734,2]
[404287940,1770034244672,-587.0,0.00014804,2]
[404287941,1770034244681,-433.0,0.00014806,2]
[404287942,1770034244691,-13492.37001067,0.00014854,2]
[404287943,1770034244701,-2351.0,0.00014873,2]
[404287944,1770034244711,-500.0,0.00014886,2]
[404287945,1770034244723,-179.5507367,0.000149,2]
[404287946,1770034244734,-12810.6979876,0.00014957,2]
[404287947,1770034244743,-250.0,0.00015,2]
[404287948,1770034244753,-179.20533301,0.00015068,2]
[404287949,1770034244764,-1500.0,0.00015068,2]
[404287950,1770034244774,-1500.0,0.00015068,2]
[404287951,1770034244784,-3819.93,0.00015068,2]
[404287952,1770034244794,-271.81606934,0.00015195,2]
[404287953,1770034244804,-717.32690753,0.00015195,2]
[404287954,1770034244813,-161.21910117,0.00015294,2]
[404287955,1770034244827,-76691.8629133,0.00015297,2]
[404287956,1770034244837,-393.99562504,0.00015301,2]
[404287957,1770034244847,-250.0,0.00015431,2]
[404287958,1770034244857,-500.0,0.00015434,2]
[404287959,1770034244867,-8620.2216506,0.00015457,2]
[404287960,1770034244877,-13492.37001067,0.00015464,2]
[404287961,1770034244887,-502.28798495,0.00015473,2]
[404287962,1770034244898,-500.0,0.00015473,2]
[404287963,1770034244907,-500.0,0.00015473,2]
[404287964,1770034244917,-500.0,0.00015473,2]
[404287965,1770034244927,-500.0,0.00015473,2]
[404287966,1770034244937,-500.0,0.00015473,2]
[404287967,1770034244947,-500.0,0.00015473,2]
[404287968,1770034244957,-500.0,0.00015473,2]
[404287969,1770034244967,-500.0,0.00015473,2]
[404287970,1770034244977,-501.94112039,0.00015473,2]
[404287971,1770034244987,-500.0,0.00015473,2]
[404287972,1770034244997,-500.0,0.00015473,2]
[404287973,1770034245007,-500.0,0.00015473,2]
[404287974,1770034245018,-500.0,0.00015473,2]
[404287975,1770034245027,-500.0,0.00015473,2]
[404287976,1770034245037,-500.0,0.00015473,2]
[404287977,1770034245047,-500.0,0.00015473,2]
[404287978,1770034245059,-500.0,0.00015473,2]
[404287979,1770034245069,-500.62937167,0.00015473,2]
[404287981,1770034245079,-501.89927416,0.00015473,2]
[404287982,1770034245088,-586.45296103,0.00015473,2]
[404287983,1770034245099,-500.0,0.00015473,2]
[404287984,1770034245108,-157.58038737,0.00015473,2]
[404287985,1770034245118,-500.0,0.00015473,2]
[404287986,1770034245128,-500.0,0.00015473,2]
[404287987,1770034245138,-291.61164288,0.00015473,2]
[404287988,1770034245148,-501.08336444,0.00015473,2]
[404287989,1770034245157,-500.0,0.00015473,2]
[404287990,1770034245167,-500.0,0.00015473,2]
[404287991,1770034245177,-500.0,0.00015473,2]
[404287992,1770034245186,-500.0,0.00015473,2]
[404287993,1770034245196,-500.0,0.00015473,2]
[404287994,1770034245205,-500.0,0.00015473,2]
[404287995,1770034245215,-500.0,0.00015473,2]
[404287996,1770034245225,-500.0,0.00015473,2]
[404287997,1770034245248,-500.0,0.00015473,2]
[404287998,1770034245264,-501.09302375,0.00015473,2]
[404287999,1770034245279,-500.0,0.00015473,2]
[404288000,1770034245291,-500.0,0.00015473,2]
[404288001,1770034245306,-500.0,0.00015473,2]
[404288002,1770034245319,-500.0,0.00015473,2]
[404288003,1770034245333,-500.0,0.00015473,2]
[404288004,1770034245346,-500.0,0.00015473,2]
[404288005,1770034245359,-500.0,0.00015473,2]
[404288006,1770034245374,-500.0,0.00015473,2]
[404288007,1770034245387,-500.0,0.00015473,2]
[404288008,1770034245400,-12810.6979876,0.00015545,2]
[404288009,1770034245412,-500.0,0.00015589,2]
[404288010,1770034245426,-223.2,0.00015608,2]
[404288011,1770034245439,-277.64620196,0.00015616,2]
[404288012,1770034245452,-392.5604124,0.00015616,2]
[404288013,1770034245465,-502.95071122,0.00015674,2]
[404288014,1770034245479,-1265.44969236,0.00015695,2]
[404288015,1770034245492,-3819.93,0.00015753,2]
[404288016,1770034245506,-152.49,0.0001578,2]
[404288017,1770034245521,-159.99318318,0.00015958,2]
[404288018,1770034245534,-3992.56342833,0.0001596,2]
[404288019,1770034245546,-1000.0,0.00015981,2]
[404288020,1770034245558,-500.0,0.00015982,2]
[404288021,1770034245570,-1000.0,0.00016021,2]
[404288022,1770034245583,-1000.0,0.00016021,2]
[404288023,1770034245596,-399.10712823,0.00016021,2]
[404288024,1770034245609,-503.91068608,0.00016021,2]
[404288025,1770034245621,-1000.0,0.00016021,2]
[404288026,1770034245634,-1018.80564021,0.00016021,2]
[404288027,1770034245645,-1000.0,0.00016021,2]
[404288028,1770034245658,-1000.0,0.00016021,2]
[404288029,1770034245670,-1000.0,0.00016021,2]
[404288030,1770034245683,-1000.0,0.00016021,2]
[404288032,1770034245700,-503.27979337,0.00016021,2]
[404288033,1770034245713,-740.83933027,0.00016021,2]
[404288034,1770034245726,-1000.0,0.00016021,2]
[404288035,1770034245738,-1005.45817911,0.00016021,2]
[404288037,1770034245750,-1000.0,0.00016021,2]
[404288038,1770034245761,-1000.0,0.00016021,2]
[404288039,1770034245772,-1005.38162593,0.00016021,2]
[404288040,1770034245783,-1000.0,0.00016021,2]
[404288041,1770034245796,-1000.0,0.00016021,2]
[404288043,1770034245810,-761.27528148,0.00016021,2]
[404288045,1770034245820,-1003.56149344,0.00016021,2]
[404288047,1770034245831,-1000.0,0.00016021,2]
[404288049,1770034245841,-1004.30163313,0.00016021,2]
[404288051,1770034245851,-1000.0,0.00016021,2]
[404288053,1770034245863,-1000.0,0.00016021,2]
[404288055,1770034245876,-1000.0,0.00016021,2]
[404288056,1770034245888,-487.31307274,0.00016021,2]
[404288057,1770034245900,-1000.0,0.00016021,2]
[404288058,1770034245911,-1000.0,0.00016021,2]
[404288059,1770034245921,-1000.0,0.00016021,2]
[404288060,1770034245931,-1000.0,0.00016021,2]
[404288061,1770034245941,-1000.0,0.00016021,2]
[404288062,1770034245952,-1000.0,0.00016021,2]
[404288063,1770034245963,-1000.0,0.00016021,2]
[404288064,1770034245975,-13492.37001067,0.00016073,2]
[404288065,1770034245986,-1923.4314374,0.00016076,2]
[404288066,1770034245997,-153.85,0.00016079,2]
[404288067,1770034246009,-736.0,0.00016083,2]
[404288068,1770034246020,-3412.42,0.00016116,2]
[404288069,1770034246032,-12774.0,0.00016128,2]
[404288070,1770034246044,-12810.6979876,0.00016134,2]
[404288071,1770034246058,-305.66548204,0.00016139,2]
[404288072,1770034246069,-823.0,0.00016247,2]
[404288073,1770034246081,-3292.0,0.0001636,2]
[404288074,1770034246092,-1330.2,0.00016438,2]
[404288075,1770034246106,-500.0,0.00016438,2]
[404288076,1770034246118,-500.0,0.00016438,2]
[404288077,1770034246133,-500.0,0.00016438,2]
[404288078,1770034246146,-500.0,0.00016438,2]
[404288079,1770034246157,-500.0,0.00016438,2]
[404288080,1770034246169,-500.0,0.00016438,2]
[404288081,1770034246181,-500.0,0.00016438,2]
[404288082,1770034246196,-500.0,0.00016438,2]
[404288083,1770034246208,-500.0,0.00016438,2]
[404288084,1770034246220,-559.07231605,0.00016438,2]
[404288086,1770034246231,-500.0,0.00016438,2]
[404288087,1770034246243,-500.0,0.00016438,2]
[404288088,1770034246254,-500.0,0.00016438,2]
[404288089,1770034246265,-500.0,0.00016438,2]
[404288090,1770034246277,-500.0,0.00016438,2]
[404288091,1770034246288,-500.0,0.00016438,2]
[404288092,1770034246299,-500.0,0.00016438,2]
[404288093,1770034246311,-500.0,0.00016438,2]
[404288094,1770034246323,-500.0,0.00016438,2]
[404288095,1770034246337,-500.0,0.00016438,2]
[404288096,1770034246348,-500.0,0.00016438,2]
[404288097,1770034246361,-2302.50027259,0.00016438,2]
[404288098,1770034246373,-2302.50027259,0.00016438,2]
[404288099,1770034246385,-2302.50027259,0.00016438,2]
[404288100,1770034246396,-2302.50027259,0.00016438,2]
[404288101,1770034246408,-2302.50027259,0.00016438,2]
[404288102,1770034246419,-2302.50027259,0.00016438,2]
[404288103,1770034246430,-2302.50027259,0.00016438,2]
[404288104,1770034246442,-2302.50027259,0.00016438,2]
[404288105,1770034246454,-2302.50027259,0.00016438,2]
[404288106,1770034246466,-2302.50027259,0.00016438,2]
[404288107,1770034246478,-2302.50027259,0.00016438,2]
[404288108,1770034246489,-2302.50027259,0.00016438,2]
[404288109,1770034246500,-2302.50027259,0.00016438,2]
[404288110,1770034246512,-2302.50027259,0.00016438,2]
[404288111,1770034246523,-2302.50027259,0.00016438,2]
[404288112,1770034246535,-2302.50027259,0.00016438,2]
[404288113,1770034246546,-2302.50027259,0.00016438,2]
[404288114,1770034246557,-2302.50027259,0.00016438,2]
[404288115,1770034246568,-2302.50027259,0.00016438,2]
[404288116,1770034246579,-2302.50027259,0.00016438,2]
[404288117,1770034246590,-2302.50027259,0.00016438,2]
[404288118,1770034246602,-2302.50027259,0.00016438,2]
[404288119,1770034246614,-2302.50027259,0.00016438,2]
[404288120,1770034246625,-2302.50027259,0.00016438,2]
[404288121,1770034246637,-2302.50027259,0.00016438,2]
[404288122,1770034246649,-2302.50027259,0.00016438,2]
[404288123,1770034246660,-2302.50027259,0.00016438,2]